Cogmind - Beta 15 @@@ ROGUE MODE // 2025.05.26 @ 18:36:17 // Winter2022/Polymind Player: Figgis Result: Self-destructed Performance ------------- Evolutions (3) 1500 Regions Visited (8) 1600 Robots Destroyed (28) 140 Value Destroyed (918) 918 Prototype IDs (5) 100 Alien Tech Used (0) 0 Bonus (3680) 3680 TOTAL SCORE: 7908 Bonus ------- Polymind Skill 3410 Pacifist 270 Cogmind --------- Core Integrity 534/700 Matter 0/0 Energy 25/25 System Corruption 1% Temperature Cool (0) Movement Core (100) Ox1 Location -7/Factory Parts ------- > --- POWER (1) -------- (None) > --- PROPULSION (1) --- (None) > --- UTILITY (22) ----- Advanced Launcher Guidance Computer Improved Target Analyzer Experimental Core Analyzer Improved Armor Integrity Analyzer EX Chip 1 EX Chip 1 EX Chip 1 EX Chip 1 EX Chip 1 EX Chip 1 EX Chip 1 EX Chip 1 EX Chip 1 EX Chip 2 EX Chip 2 EX Chip 2 EX Chip 2 EX Chip 2 EX Chip 2 > --- WEAPON (2) ------- AWS/EX-DEC > --- INVENTORY (2) ---- Light Nuclear Core Deploy-a-Sentry Peak State ------------ > --- POWER ------------ Heavy Deuterium Engine > --- PROPULSION ------- Combat Antigrav System > --- UTILITY ---------- Advanced Launcher Guidance Computer Improved Target Analyzer Experimental Core Analyzer Improved Armor Integrity Analyzer EX Chip 1 EX Chip 1 EX Chip 1 EX Chip 1 EX Chip 1 EX Chip 1 EX Chip 1 EX Chip 1 EX Chip 1 EX Chip 1 EX Chip 2 EX Chip 2 EX Chip 2 EX Chip 2 EX Chip 2 EX Chip 2 EX Chip 2 EX Chip 2 > --- WEAPON ----------- AWS/EX-DEC > --- INVENTORY -------- Light Nuclear Core Deploy-a-Sentry [Rating: 100] Favorites ----------- Power Heavy Deuterium Engine Engine Heavy Deuterium Engine Propulsion Combat Antigrav System Hover Unit Combat Antigrav System Utility EX Chip 1 Processor Advanced Launcher Guidance Computer Hackware EX Chip 1 Weapon AWS/EX-DEC Energy Gun AWS/EX-DEC Build | -11 -10 -10 -10 -9 -8 -7 -7 -7 ------- Run | Yrd Mat Min Exi Min Mat Fac Was Fac Slots Evolved . | . . . . . . . . . Power . | . . . . . . . . . Propulsion . | . . . . . . . . . Utility . | . . . . . . . . . Weapon . | . . . . . . . . . Parts Attached . | . . . . . . . . . Power . | . . . . . . . . . Engine . | . . . . . . . . . Core . | . . . . . . . . . Reactor . | . . . . . . . . . Propulsion . | . . . . . . . . . Treads . | . . . . . . . . . Leg . | . . . . . . . . . Wheel . | . . . . . . . . . Hover . | . . . . . . . . . Flight . | . . . . . . . . . Utility . | . . . . . . . . . Device . | . . . . . . . . . Storage . | . . . . . . . . . Processor . | . . . . . . . . . Hackware . | . . . . . . . . . Protection . | . . . . . . . . . Artifact . | . . . . . . . . . Weapon . | . . . . . . . . . Energy Gun . | . . . . . . . . . Energy Cannon . | . . . . . . . . . Ballistic Gun . | . . . . . . . . . Ballistic Cannon . | . . . . . . . . . Launcher . | . . . . . . . . . Special Weapon . | . . . . . . . . . Impact Weapon . | . . . . . . . . . Slashing Weapon . | . . . . . . . . . Piercing Weapon . | . . . . . . . . . Special Melee Weapon . | . . . . . . . . . Unidentified Prototypes . | . . . . . . . . . Parts Lost 4 | . . . . . . 3 1 . Power 1 | . . . . . . . 1 . Propulsion . | . . . . . . . . . Utility 3 | . . . . . . 3 . . Weapon . | . . . . . . . . . Highest Loss Streak 2 | . . . . . . 2 1 . To Critical Strikes . | . . . . . . . . . Average Backups . | . . . . . . . 1 1 Power . | . . . . . . . 1 1 Propulsion . | . . . . . . . . . Utility . | . . . . . . . . . Weapon . | . . . . . . . . . Tool/Special . | . . . . . . . . . Unused Backups 1 | . . . . . . . . 1 Power 1 | . . . . . . . . 1 Propulsion . | . . . . . . . . . Utility . | . . . . . . . . . Weapon . | . . . . . . . . . Tool/Special . | . . . . . . . . . Average Slot Usage (%) 85 | . 11 100 70 96 96 92 79 76 Engine 5 | . 2 25 10 3 3 3 1 . Hover 8 | . 5 50 18 3 3 3 1 . Processor 15 | . 2 25 14 15 15 15 15 15 Hackware 52 | . . . 24 69 69 65 57 57 Energy Gun 2 | . . . 1 3 3 3 3 3 Peak Build Rating 100 | . 5 5 99 99 99 100 94 81 Average Rating 77 | . . 5 38 99 99 97 85 81 On Entrance 53 | . . 5 5 99 99 99 94 81 Naked Turns 116 | . 72 . 44 . . . . . Heaviest Build 21 | . 3 3 21 21 21 21 21 10 Greatest Support 21 | 3 12 12 21 21 21 21 21 8 Greatest Overweight (x) 1 | . . . . . . . 1 1 Average Overweight (x) . | . . . . . . . . 1 Largest Inventory Capacity 2 | . . . 2 2 2 2 2 2 Average Capacity 1 | . . . . 2 2 2 2 2 Most Carried 2 | . . . 1 1 1 2 2 2 Average Carried 1 | . . . . 1 1 1 2 2 Final Capacity 2 | . . . 2 2 2 2 2 2 Final Carried 2 | . . . 1 1 1 2 2 2 Class Distribution -------------------- 80% | Assembler 11% | Watcher 7% | Cogmind Dominant Class ---------------- Cogmind | -10/Materials Watcher | -10/Mines Assembler | -10/Exiles Assembler | -9/Mines Assembler | -8/Materials Assembler | -7/Factory Assembler | -7/Waste Assembler | -7/Factory Resources | -11 -10 -10 -10 -9 -8 -7 -7 -7 ----------- Run | Yrd Mat Min Exi Min Mat Fac Was Fac Matter Collected . | . . . . . . . . . Remotely . | . . . . . . . . . Salvage Created 1129 | . . . . . 465 664 . . Parts 58 | . . . . . 21 37 . . Haulers Intercepted 1 | . . . . . . 1 . . Recyclers Shooed . | . . . . . . . . . Parts Field Recycled . | . . . . . . . . . Retrieved Matter . | . . . . . . . . . Parts Self-Destructed . | . . . . . . . . . Prevented . | . . . . . . . . . Kills | -11 -10 -10 -10 -9 -8 -7 -7 -7 ------- Run | Yrd Mat Min Exi Min Mat Fac Was Fac Combat Hostiles Destroyed 21 | . . . . . 9 12 . . Guns 19 | . . . . . 8 11 . . AOE 1 | . . . . . . 1 . . Classes Destroyed 7 | . . . . . 4 3 . . Hauler 1 | . . . . . . 1 . . Watcher 6 | . . . . . 2 4 . . Swarmer 10 | . . . . . 3 7 . . Grunt 4 | . . . . . 3 1 . . Sentry 4 | . . . . . 3 1 . . Hunter 2 | . . . . . . 2 . . Programmer 1 | . . . . . . 1 . . Best Kill Streak 5 | . . . . . 5 5 . . Combat Bots Only 5 | . . . . . 5 5 . . Max Kills in Single Turn 2 | . . . . . 1 2 . . Gunslinging . | . . . . . . . . . Exploded 1 | . . . . . . 1 . . Melee . | . . . . . . . . . Uniques/NPCs Destroyed . | . . . . . . . . . Combat | -11 -10 -10 -10 -9 -8 -7 -7 -7 -------- Run | Yrd Mat Min Exi Min Mat Fac Was Fac Hostile Shots Fired 78 | . . . . . 16 60 2 . Missed 35 | . . . . . 9 26 . . Hits 43 | . . . . . 7 34 2 . Melee 2 | . . . . . . . 2 . Projectile 41 | . . . . . 7 34 . . Critical Strikes 2 | . . . . . . 1 1 . Part Disruptions 1 | . . . . . . 1 . . Damage Taken 553 | . . . . . 89 363 101 . Core 181 | . . . . . 15 114 52 . Absorbed by Shields . | . . . . . . . . . Ignored by Resistances 81 | . . . . . . 81 . . Core Remaining (%) 99 | 100 . . . 100 97 . . . Volleys Fired . | . . . . . . . . . Largest . | . . . . . . . . . Hottest . | . . . . . . . . . Shots Fired 79 | . . . . . 23 53 3 . Gun 79 | . . . . . 23 53 3 . Cannon . | . . . . . . . . . Launcher . | . . . . . . . . . Special . | . . . . . . . . . Kinetic . | . . . . . . . . . Thermal . | . . . . . . . . . Explosive . | . . . . . . . . . Electromagnetic 79 | . . . . . 23 53 3 . Robot Hit Streak 21 | . . . . . 21 18 2 . Robot Miss Streak 4 | . . . . . 2 4 1 . Penetration Max . | . . . . . . . . . Secondary Targets . | . . . . . . . . . Autonomous 79 | . . . . . 23 53 3 . Shots Hit Robots 73 | . . . . . 22 48 3 . Core Hits 51 | . . . . . 16 35 . . Critical Kills . | . . . . . . . . . Critical Parts Destroyed . | . . . . . . . . . Critical Strikes 7 | . . . . . 2 5 . . Corrupt 7 | . . . . . 2 5 . . Melee Attacks . | . . . . . . . . . Impact . | . . . . . . . . . Slashing . | . . . . . . . . . Piercing . | . . . . . . . . . Sneak Attacks . | . . . . . . . . . Combat Hostiles . | . . . . . . . . . Follow-up Attacks . | . . . . . . . . . Damage Inflicted 1750 | . . . . . 658 1090 2 . Guns 1587 | . . . . . 658 927 2 . Cannons . | . . . . . . . . . Explosions 156 | . . . . . . 156 . . Melee . | . . . . . . . . . Ramming 7 | . . . . . . 7 . . Kinetic . | . . . . . . . . . Thermal 156 | . . . . . . 156 . . Explosive . | . . . . . . . . . Electromagnetic 1587 | . . . . . 658 927 2 . Impact . | . . . . . . . . . Slashing . | . . . . . . . . . Piercing . | . . . . . . . . . Highest Corruption 1 | . . . . . . 1 1 1 Average Corruption 1 | . . . . . . 1 1 1 Corruption Purged . | . . . . . . . . . Corruption Blocked . | . . . . . . . . . Effects 2 | . . . . . . 1 . 1 Message Errors 1 | . . . . . . 1 . . Energy Discharges 1 | . . . . . . . . 1 Overload Shots . | . . . . . . . . . Overflow Damage . | . . . . . . . . . Projectiles . | . . . . . . . . . Explosions . | . . . . . . . . . Melee . | . . . . . . . . . Knockbacks . | . . . . . . . . . Impact . | . . . . . . . . . Kinetic . | . . . . . . . . . Secondary . | . . . . . . . . . Self-Inflicted Damage 52 | . . . . . . 52 . . Shots 1 | . . . . . . 1 . . Rammed 1 | . . . . . . 1 . . Targets Rammed 1 | . . . . . . 1 . . Kicked . | . . . . . . . . . Crushed . | . . . . . . . . . Highest Temperature 7 | . . . . . . 7 . . Average Temperature 4 | . . . . . . 4 . . Received Heat Transfer 66 | . . . . . 36 30 . . Siege Activations . | . . . . . . . . . Martial Activations . | . . . . . . . . . Shielding Activations . | . . . . . . . . . Robots Disrupted . | . . . . . . . . . Combat Hostiles . | . . . . . . . . . Robots Corrupted 2 | . . . . . 1 1 . . Combat Hostiles 1 | . . . . . 1 . . . Parts Fried 13 | . . . . . 6 7 . . Impact Corruptions . | . . . . . . . . . Robots Melted . | . . . . . . . . . Combat Hostiles . | . . . . . . . . . Parts Melted . | . . . . . . . . . Heat Transferred 150 | . . . . . . 150 . . Parts Sabotaged . | . . . . . . . . . Parts Stolen . | . . . . . . . . . Parts Stripped . | . . . . . . . . . Power Chain Reactions 2 | . . . . . . 2 . . Alert | -11 -10 -10 -10 -9 -8 -7 -7 -7 ------- Run | Yrd Mat Min Exi Min Mat Fac Was Fac Maximum Alert Level . | . . . . . . . . . Low Security (%) 100 | 100 100 100 . 100 100 100 100 100 Level 1 . | . . . . . . . . . Level 2 . | . . . . . . . . . Level 3 . | . . . . . . . . . Level 4 . | . . . . . . . . . Level 5 . | . . . . . . . . . High Security . | . . . . . . . . . Max Security . | . . . . . . . . . Peak Influence 174 | . 6 . . . 110 174 . . Initial . | . . . . . . . . . Average 28 | . . . . . 14 64 . . Influence Increases 624 | . 6 . . . 244 374 . . Destroy 0b10 Robot/C 420 | . . . . . 180 240 . . Destroy 0b10 Robot/NC 35 | . . . . . 10 25 . . Destroy Leader 124 | . . . . . 54 70 . . Successful Hack 6 | . 6 . . . . . . . Destroy Structure 9 | . . . . . . 9 . . Lose Combat Pursuer 30 | . . . . . . 30 . . Influence Decreases 624 | . 6 . . . 244 374 . . Time Decay 254 | . 6 . . . 54 194 . . Lost Part 30 | . . . . . . 30 . . Purge Threat 340 | . . . . . 190 150 . . Squads Dispatched 4 | . . 1 . . 1 2 . . Investigation 1 | . . 1 . . . . . . Extermination 1 | . . . . . . 1 . . Reinforcement 1 | . . . . . 1 . . . Assault . | . . . . . . . . . Garrison 1 | . . . . . . 1 . . Intercept . | . . . . . . . . . Searches Triggered . | . . . . . . . . . Construction Impeded . | . . . . . . . . . Haulers Reinforced . | . . . . . . . . . Active Scanning Responses . | . . . . . . . . . Cargo Convoy Interrupts . | . . . . . . . . . Stealth | -11 -10 -10 -10 -9 -8 -7 -7 -7 --------- Run | Yrd Mat Min Exi Min Mat Fac Was Fac Distress Signals 1 | . . . . . . 1 . . Communications Jammed . | . . . . . . . . . Distress Signals . | . . . . . . . . . Times Spotted 40 | . 1 . 1 . 12 19 6 1 Peak Tracking Total 6 | . 1 . 1 . 3 4 6 1 Tactical Retreats 3 | . . . . . . 2 1 . Traps | -11 -10 -10 -10 -9 -8 -7 -7 -7 ------- Run | Yrd Mat Min Exi Min Mat Fac Was Fac Traps Triggered 1 | . . . . . . 1 . . Indirectly . | . . . . . . . . . Trap Hack Attempts . | . . . . . . . . . Triggered . | . . . . . . . . . Disarmed . | . . . . . . . . . Reprogrammed . | . . . . . . . . . Reused . | . . . . . . . . . Traps Extracted . | . . . . . . . . . Installed . | . . . . . . . . . Triggered . | . . . . . . . . . Machines | -11 -10 -10 -10 -9 -8 -7 -7 -7 ---------- Run | Yrd Mat Min Exi Min Mat Fac Was Fac Machines Disabled . | . . . . . . . . . Max in Single Turn . | . . . . . . . . . Machines Repaired . | . . . . . . . . . Machines Dismantled . | . . . . . . . . . Machines Sabotaged . | . . . . . . . . . Overloaded Fab Kills . | . . . . . . . . . Hacking | -11 -10 -10 -10 -9 -8 -7 -7 -7 --------- Run | Yrd Mat Min Exi Min Mat Fac Was Fac Machines Accessed 13 | . 3 1 1 . 4 3 . 1 Terminals 11 | . 3 . . . 4 3 . 1 Fabricators . | . . . . . . . . . Repair Stations . | . . . . . . . . . Recycling Units . | . . . . . . . . . Scanalyzers . | . . . . . . . . . Garrison Access . | . . . . . . . . . Total Hacks 54 | . 8 1 4 . 28 11 . 2 Successful 43 | . 2 1 4 . 28 6 . 2 Failed 11 | . 6 . . . . 5 . . Catastrophic 2 | . 2 . . . . . . . Database Lockouts . | . . . . . . . . . Manual 50 | . 8 . . . 29 11 . 2 Terminals 49 | . 8 . . . 28 11 . 2 Fabricators . | . . . . . . . . . Repair Stations . | . . . . . . . . . Recycling Units . | . . . . . . . . . Scanalyzers . | . . . . . . . . . Garrison Access . | . . . . . . . . . Terminal Hacks 34 | . 1 1 4 . 20 6 . 2 Record 4 | . . . 4 . . . . . Robot Analysis 10 | . 1 . . . 9 . . . Prototype ID Bank 1 | . . . . . 1 . . . Open Door 1 | . . 1 . . . . . . Level Access Points 1 | . . . . . 1 . . . Branch Access Points 3 | . . . . . 1 1 . 1 Machine Index 3 | . . . . . 1 1 . 1 Recycling Unit Index 1 | . . . . . 1 . . . Unreport Threat 4 | . . . . . 3 1 . . Locate Traps 4 | . . . . . 1 3 . . Zone Layout 2 | . . . . . 2 . . . Fabricator Hacks . | . . . . . . . . . Repair Station Hacks . | . . . . . . . . . Recycling Unit Hacks . | . . . . . . . . . Scanalyzer . | . . . . . . . . . Garrison Access Hacks . | . . . . . . . . . Unauthorized Hacks 9 | . 1 . . . 8 . . . Terminals 9 | . 1 . . . 8 . . . Track 1 | . . . . . 1 . . . Assimilate 1 | . . . . . 1 . . . Botnet 4 | . 1 . . . 3 . . . Operators 2 | . . . . . 2 . . . Skim 1 | . . . . . 1 . . . Fabricators . | . . . . . . . . . Repair Stations . | . . . . . . . . . Recycling Units . | . . . . . . . . . Scanalyzers . | . . . . . . . . . Garrison Access . | . . . . . . . . . Data Cores Recovered . | . . . . . . . . . Used . | . . . . . . . . . Hacking Detections 9 | . 3 . . . 4 2 . . Full Trace Events 1 | . 1 . . . . . . . Feedback Events . | . . . . . . . . . Feedback Blocked . | . . . . . . . . . Robot Schematics Acquired . | . . . . . . . . . Robots Built . | . . . . . . . . . Authchips . | . . . . . . . . . Time . | . . . . . . . . . Total Robot Build Rating . | . . . . . . . . . Part Schematics Acquired . | . . . . . . . . . Parts Built . | . . . . . . . . . Authchips . | . . . . . . . . . Time . | . . . . . . . . . Total Part Build Rating . | . . . . . . . . . Parts Repaired . | . . . . . . . . . Time . | . . . . . . . . . Parts Recycled . | . . . . . . . . . Recycled Matter . | . . . . . . . . . Retrieved Matter . | . . . . . . . . . Retrieved Components . | . . . . . . . . . Parts Scanalyzed . | . . . . . . . . . Part Schematics Acquired . | . . . . . . . . . Parts Damaged . | . . . . . . . . . Bothacking | -11 -10 -10 -10 -9 -8 -7 -7 -7 ------------ Run | Yrd Mat Min Exi Min Mat Fac Was Fac Used RIF Installer . | . . . . . . . . . Robots Hacked 1 | . 1 . . . . . . . Non-combat 1 | . 1 . . . . . . . Combat . | . . . . . . . . . Robot Hacks Applied 2 | . 2 . . . . . . . map_route 1 | . 1 . . . . . . . mark_security 1 | . 1 . . . . . . . Relay Couplers Released . | . . . . . . . . . Fabnet Peak Effective % . | . . . . . . . . . Robots Rewired . | . . . . . . . . . Allies Hacked . | . . . . . . . . . Hacks Repelled . | . . . . . . . . . Allies | -11 -10 -10 -10 -9 -8 -7 -7 -7 -------- Run | Yrd Mat Min Exi Min Mat Fac Was Fac Total Allies . | . . . . . . . . . Largest Group . | . . . . . . . . . Highest-Rated Group . | . . . . . . . . . Highest-Rated Ally . | . . . . . . . . . Total Orders . | . . . . . . . . . Ally Attacks . | . . . . . . . . . Total Damage . | . . . . . . . . . Kills . | . . . . . . . . . Allies Corrupted . | . . . . . . . . . Allies Melted . | . . . . . . . . . Intel | -11 -10 -10 -10 -9 -8 -7 -7 -7 ------- Run | Yrd Mat Min Exi Min Mat Fac Was Fac Active Infowar (turns) 166 | . 6 124 36 . . . . . Optics 166 | . 6 124 36 . . . . . Robot Analysis Total 11 | . 2 . . . 9 . . . Derelict Logs Recovered 5 | . . 2 . 3 . . . . Drone Launches . | . . . . . . . . . Drone Recoveries . | . . . . . . . . . Exploration | -11 -10 -10 -10 -9 -8 -7 -7 -7 ------------- Run | Yrd Mat Min Exi Min Mat Fac Was Fac Turns Passed 1473 | 11 78 124 127 153 308 519 71 82 Spaces Moved 1812 | 21 154 222 211 192 320 532 78 82 Core 378 | 21 143 . 88 . . . 44 82 Treads . | . . . . . . . . . Legs . | . . . . . . . . . Wheels . | . . . . . . . . . Hover 1434 | . 11 222 123 192 320 532 34 . Flight . | . . . . . . . . . Fastest Speed 50 | 50 50 56 50 80 80 80 80 100 Average Speed 73 | 50 50 56 60 80 80 80 91 100 Slowest Speed 100 | 50 56 56 80 80 80 80 100 100 Overloaded Moves . | . . . . . . . . . Propulsion Burnouts . | . . . . . . . . . Robots Hopped . | . . . . . . . . . Potential Cave-ins . | . . . . . . . . . Cave-ins Triggered . | . . . . . . . . . Exploration Rate (%) 35 | 3 28 48 54 52 24 21 82 3 Regions Visited 8 Branch Regions 3 Pre-discovered Areas 1 | . . . 1 . . . . . Known Exits Taken 1 | . . . . . 1 . . . Unknown Exits Taken 5 | 1 1 1 1 1 . . . . Scrap Searched . | . . . . . . . . . Spaces Dug . | . . . . . . . . . Terrain Destroyed 7 | . . . . . . 7 . . Melee . | . . . . . . . . . Projectile . | . . . . . . . . . AOE 7 | . . . . . . 7 . . Terrain Rammed . | . . . . . . . . . Walls Destroyed . | . . . . . . . . . Machines Disabled . | . . . . . . . . . Actions | -11 -10 -10 -10 -9 -8 -7 -7 -7 --------- Run | Yrd Mat Min Exi Min Mat Fac Was Fac Total 1950 | 20 153 221 210 191 371 625 77 82 Wait 143 | . . . . . 52 91 . . Move 1805 | 20 153 221 210 191 319 532 77 82 Hop . | . . . . . . . . . Pick Up 1 | . . . . . . 1 . . Fast Attach . | . . . . . . . . . Attach . | . . . . . . . . . Detach . | . . . . . . . . . Swap . | . . . . . . . . . Drop . | . . . . . . . . . Fire . | . . . . . . . . . Melee . | . . . . . . . . . Ram 1 | . . . . . . 1 . . Kick . | . . . . . . . . . Crush . | . . . . . . . . . Escape Stasis . | . . . . . . . . . Rewire . | . . . . . . . . . Trap . | . . . . . . . . . Miscellaneous . | . . . . . . . . . Route ------- -11/Scrapyard -10/Materials (discovered 2 exits: *Mat / *Min) -10/Mines (discovered 2 exits: Mat / *Exi) -10/Exiles (discovered 2 exits: [*Min x2]) -9/Mines -8/Materials (discovered 3 exits: *Fac x3) -7/Factory (discovered 4 exits: [*Fac x2] / *Low x2) -7/Waste -7/Factory (discovered 2 exits: Low x2) History --------- Turn | Location | Event 4 | -11/Scrapyard | Discovered new exit (range 13) 12 | -11/Scrapyard | Entered Materials 60 | -10/Materials | Discovered new exit (range 11) 81 | -10/Materials | Discovered new exit (range 6) 90 | -10/Materials | Entered Mines 107 | -10/Mines | Learned Materials terminal intel 163 | -10/Mines | Met a Derelict shopkeep closing up shop 189 | -10/Mines | Identified exit to Materials 211 | -10/Mines | Deemed a non-threat by the Exiles lab entrance 211 | -10/Mines | Discovered new exit (range 5) 212 | -10/Mines | Assembled infested the area 214 | -10/Mines | Entered Exiles 228 | -10/Exiles | Met 8R-AWN 241 | -10/Exiles | Discovered new exit (range 14) 268 | -10/Exiles | Met EX-HEX 286 | -10/Exiles | Met EX-DEC 294 | -10/Exiles | Took control of EX-DEC (ally) 311 | -10/Exiles | Learned location of Zion (-6) 335 | -10/Exiles | Discovered new exit (range 10) 341 | -10/Exiles | Left Exiles lab with Deploy-a-Sentry 341 | -10/Exiles | Entered Mines 354 | -9/Mines | Learned 4 Materials zone layouts 379 | -9/Mines | Met a Derelict bent on vengeance 391 | -9/Mines | Learned Materials emergency access door positions 439 | -9/Mines | Discovered new exit (range 8) 442 | -9/Mines | Learned Materials emergency access door positions 494 | -9/Mines | Entered Materials 495 | -8/Materials | Identified exit to Factory 497 | -8/Materials | Loaded intel: 12 terminal locations 802 | -8/Materials | Entered Factory 823 | -7/Factory | Discovered new exit (range 16) 1076 | -7/Factory | Discovered new exit (range 13) 1129 | -7/Factory | Identified exit to Lower Caves 1251 | -7/Factory | Garrison activated, responded to threat 1310 | -7/Factory | Discovered new exit (range 3) 1321 | -7/Factory | Manually triggered Chute Trap 1321 | -7/Factory | Sucked down chute 1321 | -7/Factory | Entered Waste 1327 | -7/Waste | Spotted C-40 Crusher 1334 | -7/Waste | Spotted C-40 Crusher 1336 | -7/Waste | EMP discharged 1338 | -7/Waste | Spotted C-40 Crusher 1342 | -7/Waste | Spotted C-40 Crusher 1348 | -7/Waste | Crushed by Compactor (1 part destroyed, 1 dropped) 1354 | -7/Waste | Spotted C-40 Crusher 1359 | -7/Waste | Spotted C-40 Crusher 1382 | -7/Waste | Discovered new exit (range 11) 1392 | -7/Waste | Entered Factory 1474 | -7/Factory | Self-destructed Last Messages --------------- 01382_ EXIT=FOUND LOCATION=UNKNOWN GOAL=ESCAPE 01460_ System corrupted: Energy discharge (-7). 01474_ Connecting with Terminal... 01474_ Current location identified: Factory >>Index(Machines) Found 52 machines: 26 Terminals 6 Fabricators 6 Repair Stations 6 Recycling Units 4 Scanalyzers 4 Garrison Accesses Downloaded coordinate data. >>Access(Branch) Found 2 branch access points: (127,8) Lower Caves (44,98) Lower Caves Map updated. Map ----- +----------------------------------------------------+ | ????????# """ """ + + """""" #????????? | | ????????# """ """ # # """""" #????????? | | ????????# # # """""" #????????? | | ????????# """ """ # # #????????? | | ????????# """ """ # # """""" #????????? | | ????????# """ """ # # """""" #????????? | | ????????#! # # """""" ! #????????? | | ????????############## # """""" #????????? | | ?????????????????????# # #????????? | | ?????????????????????# # #????????? | | ?????????????????????# #########+#+##????????? | | ?????????????????????# #???????# #?????????? | | ??????????????######## ######### ###???????? | | ??????????????# ######??? | | ??????????????# | | ??????????????# ########? | | ??????????????# #???????? | | ??????????????# #???????? | | ??????? ????# ################ #???????? | | ?????#? ""??# # #?????# #???????? | | ?????# """ # # """ #?????# #???????? | | ?????# + + """ #?????# #???????? | | ?????# """ # # """ #?????# +???????? | | ?????#? ""??# # #?????# #???????? | | ???????= ????# # #?????# #???????? | | ??????????????# # c #??????#### #???????? | | ??????????????# # "T" #?????????? #???????? | | ??????????????# # """ #?????????? #???????? | | ??????????????# ##########???????????????????? | | ??????????????# #????????????????????????????? | | ??????????????# #????????????????????????????? | | ??????????????# #????????????????????????????? | | ??????????????# #????????????????????????????? | | ??????????????# #????????????????????????????? | | ??????????????# #????????????????????????????? | | ??????????????# #????????????????????????????? | | ??????????????? ?????????????????????????????? | | ?????????????????????????????????????????????????? | | ?????????????????????????????????????????????????? | | ?????????????????????????????????????????????????? | | ?????????????????????????????????????????????????? | | ?????????????????????????????????????????????????? | | ?????????????????????????????????????????????????? | | ?????????????????????????????????????????????????? | | ?????????????????????????????????????????????????? | | ?????????????????????????????????????????????????? | | ?????????????????????????????????????????????????? | | ?????????????????????????????????????????????????? | | ?????????????????????????????????????????????????? | | ?????????????????????????????????????????????????? | +----------------------------------------------------+ Best States ------------- Heat Dissipation 25 Energy Generation 23 Energy Capacity 235 Sight Range 18 Terrain Scan Density 10 Resistance: EM 90 Evasion (%) 53 Launcher Accuracy 40 Target Analysis 6 Core Analysis 8 Armor Integrity Analysis 40 Offensive Hacking 70 Defensive Hacking 56 Item Schematics ----------------- None Robot Schematics ------------------ None Fabricated ------------ Nothing Repaired ---------- Nothing Alien Tech Used ----------------- None Achievements -------------- None Challenges ------------ None Polymind | -11 -10 -10 -10 -9 -8 -7 -7 -7 ---------- Run | Yrd Mat Min Exi Min Mat Fac Was Fac Hosts 2 | . 1 . 1 . . . . . Combat Hostiles . | . . . . . . . . . Allies 1 | . . . 1 . . . . . Unique Host Classes 2 | . 1 . 1 . . . . . Average Host Suspicion 65 | . 2 50 . 37 83 92 11 16 Unsuspicious Activity 52 | . 6 . 16 . . . 30 . Returns to Shadow . | . . . . . . . . . Fuzzy Dispatches 1 | . . . . . . 1 . . Protomatter Created 88 | . . . . . 35 53 . . Used 45 | . 12 . 33 . . . . . Decayed . | . . . . . . . . . Highest Spend 33 | . 12 . 33 . . . . . Top 5 Hosts by Kills: EX-DEC (-10/Exiles: 21) Game ------ Seed VoltaicSpliceMiniperforator Manual? 0 Play Time 00:15:51 Cumulative 154.4 hours Start 2025.05.26 @ 18:19:36 End 2025.05.26 @ 18:36:17 Sessions 1 Manual Loads 0 Difficulty Rogue Special Mode Winter2022/Polymind Game No. 228 Rogue 225 Adventurer 3 Explorer 0 Win Type - Total 1 Types 1/0/0/0/0/0/0/0/0/0 Lore% 43 Gallery% 55 Achievement% 45 Wizard Run 0 Options --------- Layout 0 ASCII 0 Keyboard 0 Movement Mouse Keybinds 0 Fullscreen 2 Font 18/SmallcapsGlow Map View 76x50 Zoom Use 0% Tactical HUD 1 Map Filters NONE Filters NONE Steam 1 RUN: 14fb176a-bd60-4cdd-bedd-07acf56b4679